[Event "Titled Tuesday Blitz November 22 Late 2022"]
[White "Fernandez De La Vara, Arnaldo"]
[Black "Musovic, Armin"]
[WhiteFideId "3518388"]
[BlackFideId "939935"]
[WhiteElo "2387"]
[BlackElo "2288"]
[Result "1-0"]
[Round "06"]
[TimeControl "180+1"]
[Date "2022.11.23"]
[WhiteClock "0:00:25"]
[BlackClock "0:00:17"]

1. Nf3 {[%clk 0:03:00]}  Nf6 {[%clk 0:02:51]} 2. g3 {[%clk 0:03:01]}  g6 {[%clk 0:02:51]} 3. b3 {[%clk 0:03:02]}  Bg7 {[%clk 0:02:51]} 4. Bb2 {[%clk 0:03:02]}  O-O {[%clk 0:02:51]} 5. Bg2 {[%clk 0:03:03]}  d5 {[%clk 0:02:51]} 6. c4 {[%clk 0:03:02]}  c6 {[%clk 0:02:50]} 7. O-O {[%clk 0:03:02]}  e6 {[%clk 0:02:50]} 8. Nc3 {[%clk 0:03:02]}  Re8 {[%clk 0:02:51]} 9. d4 {[%clk 0:03:00]}  Nbd7 {[%clk 0:02:49]} 10. Nd2 {[%clk 0:02:59]}  dxc4 {[%clk 0:02:45]} 11. Nxc4 {[%clk 0:03:00]}  Nb6 {[%clk 0:02:44]} 12. Ne5 {[%clk 0:02:51]}  Nfd7 {[%clk 0:02:40]} 13. f4 {[%clk 0:02:47]}  f6 {[%clk 0:02:33]} 14. Nd3 {[%clk 0:02:34]}  Nf8 {[%clk 0:02:31]} 15. e3 {[%clk 0:02:29]}  Nd5 {[%clk 0:02:25]} 16. Qd2 {[%clk 0:02:29]}  b6 {[%clk 0:02:18]} 17. Ne2 {[%clk 0:02:15]}  Ba6 {[%clk 0:02:04]} 18. Rfd1 {[%clk 0:02:13]}  Rc8 {[%clk 0:02:03]} 19. Rac1 {[%clk 0:02:12]}  h5 {[%clk 0:02:00]} 20. e4 {[%clk 0:02:10]}  Ne7 {[%clk 0:01:56]} 21. Nb4 {[%clk 0:02:10]}  Bb7 {[%clk 0:01:52]} 22. h3 {[%clk 0:01:57]}  a5 {[%clk 0:01:52]} 23. Nd3 {[%clk 0:01:53]}  Qd7 {[%clk 0:01:46]} 24. Qe3 {[%clk 0:01:47]}  Red8 {[%clk 0:01:42]} 25. g4 {[%clk 0:01:43]}  hxg4 {[%clk 0:01:40]} 26. hxg4 {[%clk 0:01:44]}  e5 {[%clk 0:01:37]} 27. dxe5 {[%clk 0:01:45]}  Qxg4 {[%clk 0:01:37]} 28. exf6 {[%clk 0:01:45]}  Nf5 {[%clk 0:01:26]} 29. exf5 {[%clk 0:01:36]}  c5 {[%clk 0:01:17]} 30. Qg3 {[%clk 0:01:29]}  Qxe2 {[%clk 0:01:13]} 31. Bxb7 {[%clk 0:01:22]}  Rc7 {[%clk 0:01:12]} 32. fxg7 {[%clk 0:01:22]}  Rxb7 {[%clk 0:01:05]} 33. gxf8=Q+ {[%clk 0:01:21]}  Kxf8 {[%clk 0:01:06]} 34. Bf6 {[%clk 0:00:46]}  Rd6 {[%clk 0:00:52]} 35. Be5 {[%clk 0:00:46]}  Rd5 {[%clk 0:00:52]} 36. Nf2 {[%clk 0:00:42]}  Rbd7 {[%clk 0:00:48]} 37. Rxd5 {[%clk 0:00:39]}  Rxd5 {[%clk 0:00:49]} 38. Qxg6 {[%clk 0:00:26]}  Rd2 {[%clk 0:00:42]} 39. Bd6+ {[%clk 0:00:26]}  Rxd6 {[%clk 0:00:39]} 40. Qxd6+ {[%clk 0:00:27]}  Kg7 {[%clk 0:00:39]} 41. Qg6+ {[%clk 0:00:26]}  Kf8 {[%clk 0:00:39]} 42. Qf6+ {[%clk 0:00:27]}  Kg8 {[%clk 0:00:39]} 43. Qe6+ {[%clk 0:00:28]}  Kf8 {[%clk 0:00:16]} 44. Qxe2 {[%clk 0:00:25]}  Kg7 {[%clk 0:00:17]} 1-0


[Site "https://www.chess.com"]

[Event "Titled Tuesday Blitz November 22 Late 2022"]
[White "Figorito, Nick"]
[Black "Winterberg, Lukas"]
[WhiteFideId "30923689"]
[BlackFideId "24622702"]
[WhiteElo "2296"]
[BlackElo "2349"]
[Result "1/2-1/2"]
[Round "06"]
[TimeControl "180+1"]
[Date "2022.11.23"]
[WhiteClock "0:01:06"]
[BlackClock "0:01:37"]

1. Nf3 {[%clk 0:03:00]}  Nf6 {[%clk 0:02:58]} 2. g3 {[%clk 0:03:01]}  g6 {[%clk 0:02:59]} 3. Bg2 {[%clk 0:03:01]}  Bg7 {[%clk 0:03:00]} 4. O-O {[%clk 0:03:02]}  O-O {[%clk 0:03:01]} 5. c4 {[%clk 0:03:03]}  c6 {[%clk 0:03:01]} 6. Nc3 {[%clk 0:03:04]}  d5 {[%clk 0:03:02]} 7. cxd5 {[%clk 0:03:04]}  Nxd5 {[%clk 0:03:02]} 8. Nxd5 {[%clk 0:03:04]}  cxd5 {[%clk 0:03:02]} 9. d4 {[%clk 0:03:04]}  Nc6 {[%clk 0:03:03]} 10. Qb3 {[%clk 0:02:59]}  Qb6 {[%clk 0:03:01]} 11. Qxd5 {[%clk 0:02:55]}  Rd8 {[%clk 0:03:00]} 12. Qg5 {[%clk 0:02:26]}  h6 {[%clk 0:02:33]} 13. Qe3 {[%clk 0:02:22]}  Nxd4 {[%clk 0:02:32]} 14. Nxd4 {[%clk 0:02:16]}  Qxd4 {[%clk 0:02:33]} 15. Qxe7 {[%clk 0:02:15]}  Bg4 {[%clk 0:02:28]} 16. Qxb7 {[%clk 0:02:06]}  Bxe2 {[%clk 0:02:26]} 17. Be3 {[%clk 0:02:05]}  Qxb2 {[%clk 0:02:22]} 18. Qxb2 {[%clk 0:02:01]}  Bxb2 {[%clk 0:02:23]} 19. Bxa8 {[%clk 0:01:59]}  Rxa8 {[%clk 0:02:21]} 20. Bxh6 {[%clk 0:01:55]}  Bxa1 {[%clk 0:02:14]} 21. Rxa1 {[%clk 0:01:54]}  Rb8 {[%clk 0:02:14]} 22. Be3 {[%clk 0:01:53]}  a5 {[%clk 0:02:14]} 23. Re1 {[%clk 0:01:47]}  Bf3 {[%clk 0:02:13]} 24. a4 {[%clk 0:01:37]}  f5 {[%clk 0:02:12]} 25. Bd2 {[%clk 0:01:32]}  Be4 {[%clk 0:02:07]} 26. Bxa5 {[%clk 0:01:29]}  Ra8 {[%clk 0:02:07]} 27. Bc7 {[%clk 0:01:28]}  Rxa4 {[%clk 0:02:08]} 28. h4 {[%clk 0:01:25]}  Kh7 {[%clk 0:02:07]} 29. Bf4 {[%clk 0:01:26]}  Kg7 {[%clk 0:02:07]} 30. Kh2 {[%clk 0:01:25]}  Ra2 {[%clk 0:02:06]} 31. Be3 {[%clk 0:01:24]}  Kf6 {[%clk 0:02:07]} 32. Rc1 {[%clk 0:01:22]}  Kf7 {[%clk 0:02:05]} 33. Kg1 {[%clk 0:01:22]}  Ke6 {[%clk 0:02:04]} 34. Kh2 {[%clk 0:01:22]}  Kd5 {[%clk 0:02:04]} 35. Rd1+ {[%clk 0:01:21]}  Ke5 {[%clk 0:02:04]} 36. Kg1 {[%clk 0:01:18]}  Bf3 {[%clk 0:02:01]} 37. Re1 {[%clk 0:01:18]}  Kf6 {[%clk 0:02:01]} 38. Bg5+ {[%clk 0:01:17]}  Kf7 {[%clk 0:02:00]} 39. Re7+ {[%clk 0:01:16]}  Kf8 {[%clk 0:02:00]} 40. Re1 {[%clk 0:01:16]}  Be4 {[%clk 0:01:59]} 41. Be3 {[%clk 0:01:14]}  Kf7 {[%clk 0:01:59]} 42. Bd4 {[%clk 0:01:14]}  Ke6 {[%clk 0:01:59]} 43. Ra1 {[%clk 0:01:12]}  Rc2 {[%clk 0:01:58]} 44. Be3 {[%clk 0:01:12]}  Kd5 {[%clk 0:01:57]} 45. Rd1+ {[%clk 0:01:12]}  Ke6 {[%clk 0:01:56]} 46. Re1 {[%clk 0:01:12]}  Ra2 {[%clk 0:01:55]} 47. Rc1 {[%clk 0:01:11]}  Kd5 {[%clk 0:01:54]} 48. Rd1+ {[%clk 0:01:11]}  Kc4 {[%clk 0:01:53]} 49. Kh2 {[%clk 0:01:10]}  Bd3 {[%clk 0:01:51]} 50. Rc1+ {[%clk 0:01:09]}  Kd5 {[%clk 0:01:50]} 51. Kg1 {[%clk 0:01:05]}  Rc2 {[%clk 0:01:33]} 52. Rxc2 {[%clk 0:01:05]}  Bxc2 {[%clk 0:01:34]} 53. Kg2 {[%clk 0:01:05]}  Ke4 {[%clk 0:01:34]} 54. Bg5 {[%clk 0:01:04]}  Bd1 {[%clk 0:01:34]} 55. Bf6 {[%clk 0:01:03]}  Bf3+ {[%clk 0:01:35]} 56. Kg1 {[%clk 0:01:04]}  Bh5 {[%clk 0:01:36]} 57. Be7 {[%clk 0:01:04]}  Bf3 {[%clk 0:01:37]} 58. Bc5 {[%clk 0:01:04]}  Bg4 {[%clk 0:01:37]} 59. Be3 {[%clk 0:01:04]}  Bf3 {[%clk 0:01:38]} 60. Kf1 {[%clk 0:01:04]}  Bh5 {[%clk 0:01:39]} 61. Ke1 {[%clk 0:01:05]}  Bf3 {[%clk 0:01:39]} 62. Kd2 {[%clk 0:01:05]}  Bh5 {[%clk 0:01:39]} 63. Kc3 {[%clk 0:01:05]}  Kd5 {[%clk 0:01:40]} 64. Kb4 {[%clk 0:01:06]}  Bg4 {[%clk 0:01:39]} 65. Kb5 {[%clk 0:01:06]}  Be2+ {[%clk 0:01:39]} 66. Kb6 {[%clk 0:01:06]}  Ke4 {[%clk 0:01:38]} 67. Kc5 {[%clk 0:01:06]}  Bh5 {[%clk 0:01:39]} 68. Kd6 {[%clk 0:01:06]}  Kf3 {[%clk 0:01:37]} 69. Ke6 {[%clk 0:01:05]}  Ke4 {[%clk 0:01:37]} 70. Kf6 {[%clk 0:01:05]}  Kf3 {[%clk 0:01:38]} 71. Kg5 {[%clk 0:01:06]}  Ke4 {[%clk 0:01:36]} 72. Ba7 {[%clk 0:01:06]}  Kf3 {[%clk 0:01:36]} 73. Kf6 {[%clk 0:01:05]}  Ke4 {[%clk 0:01:36]} 74. Kg5 {[%clk 0:01:05]}  Kf3 {[%clk 0:01:37]} 75. Kf6 {[%clk 0:01:05]}  Ke4 {[%clk 0:01:37]} 76. Kg5 {[%clk 0:01:06]} 1/2-1/2


[Site "https://www.chess.com"]

[Event "Titled Tuesday Blitz November 22 Late 2022"]
[White "Gadimbayli, Abdulla"]
[Black "Melkumyan, Hrant"]
[WhiteFideId "13404938"]
[BlackFideId "13302485"]
[WhiteElo "2399"]
[BlackElo "2604"]
[Result "0-1"]
[Round "06"]
[TimeControl "180+1"]
[Date "2022.11.22"]
[WhiteClock "0:00:11"]
[BlackClock "0:00:41"]

1. e4 {[%clk 0:02:59]}  c5 {[%clk 0:02:59]} 2. Nf3 {[%clk 0:03:00]}  Nc6 {[%clk 0:03:00]} 3. Bb5 {[%clk 0:03:00]}  g6 {[%clk 0:03:00]} 4. Bxc6 {[%clk 0:03:00]}  dxc6 {[%clk 0:02:59]} 5. d3 {[%clk 0:03:00]}  Bg7 {[%clk 0:02:59]} 6. h3 {[%clk 0:03:00]}  e5 {[%clk 0:02:58]} 7. Be3 {[%clk 0:03:00]}  Qe7 {[%clk 0:02:58]} 8. Nbd2 {[%clk 0:03:00]}  Nf6 {[%clk 0:02:58]} 9. O-O {[%clk 0:02:58]}  Nd7 {[%clk 0:02:57]} 10. a3 {[%clk 0:02:57]}  O-O {[%clk 0:02:54]} 11. Qb1 {[%clk 0:02:49]}  b6 {[%clk 0:02:44]} 12. b4 {[%clk 0:02:47]}  Re8 {[%clk 0:02:35]} 13. Re1 {[%clk 0:02:40]}  Bf8 {[%clk 0:02:30]} 14. c3 {[%clk 0:02:16]}  Ba6 {[%clk 0:02:23]} 15. Nc4 {[%clk 0:02:15]}  Qe6 {[%clk 0:02:14]} 16. Qa2 {[%clk 0:02:09]}  f6 {[%clk 0:02:00]} 17. Reb1 {[%clk 0:01:49]}  Red8 {[%clk 0:01:56]} 18. a4 {[%clk 0:01:48]}  cxb4 {[%clk 0:01:53]} 19. cxb4 {[%clk 0:01:49]}  Bxc4 {[%clk 0:01:42]} 20. dxc4 {[%clk 0:01:40]}  a5 {[%clk 0:01:41]} 21. bxa5 {[%clk 0:01:25]}  bxa5 {[%clk 0:01:41]} 22. Qc2 {[%clk 0:01:11]}  Nc5 {[%clk 0:01:40]} 23. Rb6 {[%clk 0:01:10]}  Na6 {[%clk 0:01:29]} 24. Bd2 {[%clk 0:00:37]}  Bc5 {[%clk 0:01:15]} 25. Rb7 {[%clk 0:00:36]}  Qc8 {[%clk 0:01:15]} 26. Rb3 {[%clk 0:00:32]}  Nb4 {[%clk 0:01:15]} 27. Bxb4 {[%clk 0:00:32]}  axb4 {[%clk 0:01:12]} 28. Rd3 {[%clk 0:00:21]}  Rxd3 {[%clk 0:01:12]} 29. Qxd3 {[%clk 0:00:22]}  Qc7 {[%clk 0:01:13]} 30. Qb3 {[%clk 0:00:19]}  Qa7 {[%clk 0:01:12]} 31. Ra2 {[%clk 0:00:18]}  Rd8 {[%clk 0:01:04]} 32. a5 {[%clk 0:00:17]}  Kg7 {[%clk 0:01:05]} 33. Ne1 {[%clk 0:00:16]}  Qd7 {[%clk 0:00:57]} 34. a6 {[%clk 0:00:15]}  Qd1 {[%clk 0:00:56]} 35. Qxd1 {[%clk 0:00:14]}  Rxd1 {[%clk 0:00:57]} 36. Kf1 {[%clk 0:00:15]}  b3 {[%clk 0:00:47]} 37. Rb2 {[%clk 0:00:15]}  Bb4 {[%clk 0:00:41]} 38. Re2 {[%clk 0:00:11]}  b2 {[%clk 0:00:41]} 0-1


[Site "https://www.chess.com"]

[Event "Titled Tuesday Blitz November 22 Late 2022"]
[White "Garcia Pantoja, Roberto"]
[Black "Golubev, Mikhail"]
[WhiteFideId "3509265"]
[BlackFideId "14100983"]
[WhiteElo "2524"]
[BlackElo "2374"]
[Result "0-1"]
[Round "06"]
[TimeControl "180+1"]
[Date "2022.11.23"]
[WhiteClock "0:00:09"]
[BlackClock "0:00:09"]

1. e4 {[%clk 0:03:00]}  c5 {[%clk 0:02:59]} 2. Nf3 {[%clk 0:03:00]}  d6 {[%clk 0:02:59]} 3. d4 {[%clk 0:03:00]}  cxd4 {[%clk 0:02:59]} 4. Nxd4 {[%clk 0:03:01]}  Nf6 {[%clk 0:03:00]} 5. Nc3 {[%clk 0:03:02]}  g6 {[%clk 0:03:00]} 6. Be3 {[%clk 0:03:03]}  Bg7 {[%clk 0:03:00]} 7. f3 {[%clk 0:03:03]}  O-O {[%clk 0:03:00]} 8. Qd2 {[%clk 0:03:04]}  Nc6 {[%clk 0:03:00]} 9. Bc4 {[%clk 0:03:04]}  Bd7 {[%clk 0:02:55]} 10. h4 {[%clk 0:03:05]}  Ne5 {[%clk 0:02:53]} 11. Bb3 {[%clk 0:03:05]}  h5 {[%clk 0:02:53]} 12. O-O-O {[%clk 0:03:04]}  Rc8 {[%clk 0:02:53]} 13. Kb1 {[%clk 0:03:05]}  Nc4 {[%clk 0:02:52]} 14. Bxc4 {[%clk 0:03:04]}  Rxc4 {[%clk 0:02:51]} 15. g4 {[%clk 0:03:04]}  hxg4 {[%clk 0:02:50]} 16. h5 {[%clk 0:03:05]}  Nxh5 {[%clk 0:02:50]} 17. Rdg1 {[%clk 0:03:03]}  Nf6 {[%clk 0:02:46]} 18. Bh6 {[%clk 0:02:46]}  Nxe4 {[%clk 0:02:33]} 19. Nxe4 {[%clk 0:02:14]}  Rxd4 {[%clk 0:02:16]} 20. Qe3 {[%clk 0:02:09]}  Rxe4 {[%clk 0:02:06]} 21. fxe4 {[%clk 0:02:05]}  Qb6 {[%clk 0:01:54]} 22. Qc1 {[%clk 0:02:01]}  Be5 {[%clk 0:01:28]} 23. Bxf8 {[%clk 0:01:54]}  Kxf8 {[%clk 0:01:28]} 24. Rh7 {[%clk 0:01:40]}  Bxb2 {[%clk 0:01:13]} 25. Qxb2 {[%clk 0:01:32]}  Qxg1+ {[%clk 0:01:12]} 26. Qc1 {[%clk 0:01:33]}  Qxc1+ {[%clk 0:01:12]} 27. Kxc1 {[%clk 0:01:34]}  Kg8 {[%clk 0:01:09]} 28. Rh4 {[%clk 0:01:27]}  Kg7 {[%clk 0:01:09]} 29. Kd2 {[%clk 0:01:26]}  f5 {[%clk 0:01:06]} 30. Ke3 {[%clk 0:01:14]}  e5 {[%clk 0:01:05]} 31. exf5 {[%clk 0:01:11]}  gxf5 {[%clk 0:01:04]} 32. c4 {[%clk 0:00:52]}  b6 {[%clk 0:00:59]} 33. Rh5 {[%clk 0:00:48]}  f4+ {[%clk 0:00:55]} 34. Ke4 {[%clk 0:00:48]}  g3 {[%clk 0:00:52]} 35. Rg5+ {[%clk 0:00:44]}  Kf6 {[%clk 0:00:49]} 36. Rg8 {[%clk 0:00:39]}  Bc6+ {[%clk 0:00:46]} 37. Kd3 {[%clk 0:00:39]}  g2 {[%clk 0:00:35]} 38. Ke2 {[%clk 0:00:34]}  e4 {[%clk 0:00:24]} 39. Kf2 {[%clk 0:00:33]}  e3+ {[%clk 0:00:24]} 40. Ke2 {[%clk 0:00:32]}  Ke5 {[%clk 0:00:21]} 41. Rg6 {[%clk 0:00:27]}  Be4 {[%clk 0:00:15]} 42. Rg4 {[%clk 0:00:21]}  Kd4 {[%clk 0:00:09]} 43. a4 {[%clk 0:00:11]}  f3+ {[%clk 0:00:09]} 44. Kd1 {[%clk 0:00:09]}  f2 {[%clk 0:00:09]} 0-1


[Site "https://www.chess.com"]

[Event "Titled Tuesday Blitz November 22 Late 2022"]
[White "Garcia Ramos, Daniel"]
[Black "Urbina Perez, Juan Antonio"]
[WhiteFideId "32010311"]
[BlackFideId "2217368"]
[WhiteElo "2357"]
[BlackElo "2197"]
[Result "1-0"]
[Round "06"]
[TimeControl "180+1"]
[Date "2022.11.23"]
[WhiteClock "0:00:31"]
[BlackClock "0:00:33"]

1. e4 {[%clk 0:02:54]}  d5 {[%clk 0:02:59]} 2. exd5 {[%clk 0:02:52]}  Qxd5 {[%clk 0:03:00]} 3. Nc3 {[%clk 0:02:51]}  Qd8 {[%clk 0:03:00]} 4. d4 {[%clk 0:02:50]}  Nf6 {[%clk 0:03:01]} 5. Bc4 {[%clk 0:02:50]}  e6 {[%clk 0:03:00]} 6. Nf3 {[%clk 0:02:50]}  a6 {[%clk 0:03:00]} 7. a4 {[%clk 0:02:38]}  b6 {[%clk 0:02:56]} 8. O-O {[%clk 0:02:36]}  Bb7 {[%clk 0:02:56]} 9. Re1 {[%clk 0:02:35]}  Be7 {[%clk 0:02:56]} 10. h3 {[%clk 0:02:33]}  O-O {[%clk 0:02:56]} 11. Bg5 {[%clk 0:02:32]}  Nbd7 {[%clk 0:02:55]} 12. Ne5 {[%clk 0:02:32]}  h6 {[%clk 0:02:50]} 13. Bh4 {[%clk 0:02:28]}  Nd5 {[%clk 0:02:12]} 14. Bxd5 {[%clk 0:02:17]}  exd5 {[%clk 0:01:53]} 15. Nc6 {[%clk 0:01:55]}  Bxc6 {[%clk 0:01:45]} 16. Bxe7 {[%clk 0:01:55]}  Qc8 {[%clk 0:01:46]} 17. Bxf8 {[%clk 0:01:55]}  Nxf8 {[%clk 0:01:46]} 18. Qf3 {[%clk 0:01:55]}  Qd7 {[%clk 0:01:44]} 19. Re5 {[%clk 0:01:53]}  Rd8 {[%clk 0:01:40]} 20. Rae1 {[%clk 0:01:51]}  Ne6 {[%clk 0:01:41]} 21. Qe3 {[%clk 0:01:49]}  Bb7 {[%clk 0:01:32]} 22. f4 {[%clk 0:01:47]}  c5 {[%clk 0:01:32]} 23. Ne2 {[%clk 0:01:18]}  Qxa4 {[%clk 0:01:24]} 24. c3 {[%clk 0:01:11]}  Qc2 {[%clk 0:01:14]} 25. f5 {[%clk 0:01:00]}  cxd4 {[%clk 0:01:13]} 26. Nxd4 {[%clk 0:00:48]}  Nxd4 {[%clk 0:01:13]} 27. Qxd4 {[%clk 0:00:48]}  Qxb2 {[%clk 0:01:10]} 28. Re8+ {[%clk 0:00:47]}  Rxe8 {[%clk 0:01:09]} 29. Rxe8+ {[%clk 0:00:48]}  Kh7 {[%clk 0:01:09]} 30. Re7 {[%clk 0:00:47]}  Bc8 {[%clk 0:00:59]} 31. Rxf7 {[%clk 0:00:45]}  Qc1+ {[%clk 0:00:54]} 32. Kh2 {[%clk 0:00:45]}  Qg5 {[%clk 0:00:54]} 33. f6 {[%clk 0:00:40]}  Qf5 {[%clk 0:00:32]} 34. Rxg7+ {[%clk 0:00:36]}  Kh8 {[%clk 0:00:33]} 35. f7 {[%clk 0:00:31]} 1-0


[Site "https://www.chess.com"]

[Event "Titled Tuesday Blitz November 22 Late 2022"]
[White "Ghazarian, Kirk"]
[Black "Swiercz, Dariusz"]
[WhiteFideId "30908604"]
[BlackFideId "1126881"]
[WhiteElo "2346"]
[BlackElo "2627"]
[Result "1-0"]
[Round "06"]
[TimeControl "180+1"]
[Date "2022.11.22"]
[WhiteClock "0:00:05"]
[BlackClock "0:00:05"]

1. d4 {[%clk 0:03:00]}  d5 {[%clk 0:02:50]} 2. Nf3 {[%clk 0:03:01]}  Nf6 {[%clk 0:02:46]} 3. Bf4 {[%clk 0:03:01]}  Bf5 {[%clk 0:02:45]} 4. e3 {[%clk 0:03:01]}  e6 {[%clk 0:02:45]} 5. Bd3 {[%clk 0:03:01]}  Bg6 {[%clk 0:02:44]} 6. O-O {[%clk 0:03:01]}  Bd6 {[%clk 0:02:42]} 7. Ne5 {[%clk 0:02:57]}  Nbd7 {[%clk 0:02:38]} 8. Nxg6 {[%clk 0:02:50]}  hxg6 {[%clk 0:02:38]} 9. Bxd6 {[%clk 0:02:50]}  cxd6 {[%clk 0:02:39]} 10. c4 {[%clk 0:02:48]}  dxc4 {[%clk 0:02:25]} 11. Bxc4 {[%clk 0:02:49]}  Qc7 {[%clk 0:02:26]} 12. Be2 {[%clk 0:02:45]}  d5 {[%clk 0:02:20]} 13. h3 {[%clk 0:02:42]}  Rc8 {[%clk 0:02:20]} 14. Nc3 {[%clk 0:02:37]}  O-O {[%clk 0:02:20]} 15. Rc1 {[%clk 0:02:36]}  a6 {[%clk 0:02:15]} 16. Nxd5 {[%clk 0:02:27]}  Qd6 {[%clk 0:02:16]} 17. Nxf6+ {[%clk 0:02:27]}  Nxf6 {[%clk 0:02:15]} 18. Qb3 {[%clk 0:02:23]}  Rc7 {[%clk 0:02:10]} 19. Bf3 {[%clk 0:02:19]}  b5 {[%clk 0:02:01]} 20. Rc2 {[%clk 0:02:12]}  Rfc8 {[%clk 0:02:00]} 21. Rfc1 {[%clk 0:02:10]}  g5 {[%clk 0:01:53]} 22. Rxc7 {[%clk 0:02:00]}  Rxc7 {[%clk 0:01:54]} 23. Rc3 {[%clk 0:01:55]}  Nd7 {[%clk 0:01:44]} 24. Qc2 {[%clk 0:01:52]}  Rxc3 {[%clk 0:01:44]} 25. Qxc3 {[%clk 0:01:53]}  Nb6 {[%clk 0:01:41]} 26. b3 {[%clk 0:01:47]}  Kf8 {[%clk 0:01:33]} 27. Qc5 {[%clk 0:01:42]}  Qxc5 {[%clk 0:01:31]} 28. dxc5 {[%clk 0:01:43]}  Nc8 {[%clk 0:01:32]} 29. Bb7 {[%clk 0:01:40]}  Na7 {[%clk 0:01:29]} 30. Bxa6 {[%clk 0:01:32]}  Ke7 {[%clk 0:01:26]} 31. b4 {[%clk 0:01:13]}  Kd7 {[%clk 0:01:26]} 32. a3 {[%clk 0:01:12]}  Kc6 {[%clk 0:01:26]} 33. Kf1 {[%clk 0:01:07]}  f5 {[%clk 0:00:58]} 34. Ke2 {[%clk 0:01:05]}  e5 {[%clk 0:00:59]} 35. g4 {[%clk 0:00:53]}  g6 {[%clk 0:00:57]} 36. Kd3 {[%clk 0:00:47]}  Kc7 {[%clk 0:00:53]} 37. gxf5 {[%clk 0:00:42]}  gxf5 {[%clk 0:00:53]} 38. e4 {[%clk 0:00:41]}  f4 {[%clk 0:00:50]} 39. Kd2 {[%clk 0:00:37]}  Kb8 {[%clk 0:00:44]} 40. Ke1 {[%clk 0:00:33]}  Kc7 {[%clk 0:00:42]} 41. Kf1 {[%clk 0:00:33]}  Kb8 {[%clk 0:00:29]} 42. f3 {[%clk 0:00:28]}  Kc7 {[%clk 0:00:27]} 43. Ke1 {[%clk 0:00:28]}  Nc6 {[%clk 0:00:21]} 44. Bxb5 {[%clk 0:00:27]}  Nd4 {[%clk 0:00:22]} 45. Bd3 {[%clk 0:00:20]}  Nxf3+ {[%clk 0:00:22]} 46. Kf2 {[%clk 0:00:19]}  Nd4 {[%clk 0:00:20]} 47. a4 {[%clk 0:00:19]}  Kc6 {[%clk 0:00:19]} 48. Bc4 {[%clk 0:00:17]}  Nc2 {[%clk 0:00:14]} 49. Bd5+ {[%clk 0:00:17]}  Kc7 {[%clk 0:00:13]} 50. b5 {[%clk 0:00:17]}  Nb4 {[%clk 0:00:12]} 51. b6+ {[%clk 0:00:17]}  Kb8 {[%clk 0:00:12]} 52. a5 {[%clk 0:00:16]}  Nd3+ {[%clk 0:00:12]} 53. Kf3 {[%clk 0:00:15]}  Nxc5 {[%clk 0:00:13]} 54. Kg4 {[%clk 0:00:13]}  Kc8 {[%clk 0:00:09]} 55. Kxg5 {[%clk 0:00:09]}  f3 {[%clk 0:00:09]} 56. Kf5 {[%clk 0:00:08]}  f2 {[%clk 0:00:07]} 57. Bc4 {[%clk 0:00:09]}  Nb7 {[%clk 0:00:05]} 58. Kxe5 {[%clk 0:00:06]}  Nxa5 {[%clk 0:00:06]} 59. Bf1 {[%clk 0:00:07]}  Kb7 {[%clk 0:00:03]} 60. h4 {[%clk 0:00:07]}  Nc6+ {[%clk 0:00:03]} 61. Kf6 {[%clk 0:00:07]}  Nb8 {[%clk 0:00:01]} 62. h5 {[%clk 0:00:06]}  Nd7+ {[%clk 0:00:02]} 63. Kf5 {[%clk 0:00:06]}  Nf8 {[%clk 0:00:02]} 64. h6 {[%clk 0:00:05]}  Kxb6 {[%clk 0:00:02]} 65. Kf6 {[%clk 0:00:04]}  Kc5 {[%clk 0:00:02]} 66. Kf7 {[%clk 0:00:03]}  Nh7 {[%clk 0:00:02]} 67. Kg7 {[%clk 0:00:03]}  Ng5 {[%clk 0:00:02]} 68. Kg6 {[%clk 0:00:03]}  Ne6 {[%clk 0:00:03]} 69. Kf6 {[%clk 0:00:02]}  Nf8 {[%clk 0:00:03]} 70. e5 {[%clk 0:00:02]}  Kd4 {[%clk 0:00:03]} 71. e6 {[%clk 0:00:02]}  Nh7+ {[%clk 0:00:02]} 72. Kf7 {[%clk 0:00:03]}  Ng5+ {[%clk 0:00:02]} 73. Kf6 {[%clk 0:00:03]}  Nh7+ {[%clk 0:00:02]} 74. Kg7 {[%clk 0:00:04]}  Ng5 {[%clk 0:00:02]} 75. e7 {[%clk 0:00:04]}  Ke5 {[%clk 0:00:03]} 76. e8=Q+ {[%clk 0:00:04]}  Kf4 {[%clk 0:00:04]} 77. Qg6 {[%clk 0:00:05]}  Nf3 {[%clk 0:00:04]} 78. Qf6+ {[%clk 0:00:05]}  Kg3 {[%clk 0:00:04]} 79. Qxf3+ {[%clk 0:00:05]}  Kh2 {[%clk 0:00:05]} 80. Qg2# {[%clk 0:00:05]} 1-0


[Site "https://www.chess.com"]

[Event "Titled Tuesday Blitz November 22 Late 2022"]
[White "Grave, Jacob Templen"]
[Black "Antonio, Jorge Carlos"]
[WhiteFideId "1542656"]
[BlackFideId "113190"]
[WhiteElo "2126"]
[BlackElo "2247"]
[Result "0-1"]
[Round "06"]
[TimeControl "180+1"]
[Date "2022.11.23"]
[WhiteClock "0:00:01"]
[BlackClock "0:00:28"]

1. e4 {[%clk 0:03:00]}  e5 {[%clk 0:02:59]} 2. Nf3 {[%clk 0:02:53]}  Nc6 {[%clk 0:02:59]} 3. d4 {[%clk 0:02:47]}  exd4 {[%clk 0:02:58]} 4. Bc4 {[%clk 0:02:45]}  Nf6 {[%clk 0:02:54]} 5. O-O {[%clk 0:02:42]}  Nxe4 {[%clk 0:02:51]} 6. Nc3 {[%clk 0:02:42]}  dxc3 {[%clk 0:02:47]} 7. Bxf7+ {[%clk 0:02:41]}  Kxf7 {[%clk 0:02:39]} 8. Qd5+ {[%clk 0:02:39]}  Kf6 {[%clk 0:02:35]} 9. Re1 {[%clk 0:02:28]}  Ne7 {[%clk 0:02:28]} 10. Qxe4 {[%clk 0:02:04]}  Kf7 {[%clk 0:02:26]} 11. Bg5 {[%clk 0:01:12]}  d5 {[%clk 0:02:21]} 12. Qf4+ {[%clk 0:01:05]}  Kg8 {[%clk 0:02:16]} 13. Ne5 {[%clk 0:00:54]}  Qe8 {[%clk 0:02:03]} 14. bxc3 {[%clk 0:00:54]}  Ng6 {[%clk 0:01:49]} 15. Qd4 {[%clk 0:00:36]}  Be6 {[%clk 0:01:44]} 16. Nd3 {[%clk 0:00:27]}  h6 {[%clk 0:01:41]} 17. Bf4 {[%clk 0:00:20]}  Kh7 {[%clk 0:01:31]} 18. Re2 {[%clk 0:00:18]}  c5 {[%clk 0:01:27]} 19. Qe3 {[%clk 0:00:16]}  Bd7 {[%clk 0:01:24]} 20. Qf3 {[%clk 0:00:16]}  Qf7 {[%clk 0:01:20]} 21. Rae1 {[%clk 0:00:17]}  Be7 {[%clk 0:01:05]} 22. Qg3 {[%clk 0:00:12]}  c4 {[%clk 0:00:56]} 23. Ne5 {[%clk 0:00:12]}  Nxe5 {[%clk 0:00:53]} 24. Bxe5 {[%clk 0:00:06]}  Bf6 {[%clk 0:00:49]} 25. Bxf6 {[%clk 0:00:04]}  Qxf6 {[%clk 0:00:49]} 26. Qc7 {[%clk 0:00:03]}  Bc6 {[%clk 0:00:47]} 27. Re7 {[%clk 0:00:02]}  Rhg8 {[%clk 0:00:46]} 28. h3 {[%clk 0:00:03]}  d4 {[%clk 0:00:45]} 29. R1e6 {[%clk 0:00:03]}  Qg5 {[%clk 0:00:43]} 30. Rxc6 {[%clk 0:00:02]}  bxc6 {[%clk 0:00:42]} 31. cxd4 {[%clk 0:00:02]}  Qc1+ {[%clk 0:00:38]} 32. Kh2 {[%clk 0:00:02]}  Qxc2 {[%clk 0:00:38]} 33. Qxc6 {[%clk 0:00:02]}  Qxf2 {[%clk 0:00:32]} 34. Qe4+ {[%clk 0:00:01]}  Kh8 {[%clk 0:00:31]} 35. Qg6 {[%clk 0:00:01]}  Qf6 {[%clk 0:00:28]} 0-1


[Site "https://www.chess.com"]